Cogmind - Beta 12 X1 @@@ ROGUE MODE // 2022.07.05 @ 03:22:46 Player: Boris Result: Destroyed by as-66315 with Assembled Focal Cannon Performance ------------- Evolutions (4) 2000 Regions Visited (26) 5200 Robots Destroyed (277) 1385 Value Destroyed (10334) 10334 Prototype IDs (225) 4500 Alien Tech Used (0) 0 Bonus (8411) 8411 TOTAL SCORE: 31830 Bonus ------- High Alert Combat Kills 1351 Follower Combat Kills 2349 Entered Garrisons 600 Met Data Miner 300 Used Data Conduit 3000 Destroyed Z-Imprinter 1000 Triggered Deep Caves Wall 500 Exposed GOLEM Chamber 500 Friendly Fire -1189 Cogmind --------- Core Integrity 0/850 Matter 100/300 Energy 18/100 System Corruption 0% Temperature Cool (12) Movement Core (800) Ox15 Location -6/Deep Caves Parts ------- > --- POWER (2) -------- (None) > --- PROPULSION (4) --- (None) > --- UTILITY (6) ------ High-capacity Storage Unit Armor Integrity Analyzer > --- WEAPON (3) ------- RU-N14's Throwing Claymores > --- INVENTORY (20) --- Enhanced Flexi-carbon Leg Experimental Heat Sink Zionite Biocell (600) Experimental Sensor Array Improved Proton Missile Launcher Precision Rocket Launcher Phasing Sabre Self-destruct Interrupter (50) Peak State ------------ > --- POWER ------------ Antimatter Reactor Zionite Light DM Reactor > --- PROPULSION ------- Heavy Treads Heavy Treads > --- UTILITY ---------- High-capacity Storage Unit Improved Target Analyzer Armor Integrity Analyzer Zionite Weapon Casing Zionite Heavy Carapace > --- WEAPON ----------- RU-N14's Throwing Claymores Molecular Deconstructor > --- INVENTORY -------- Enhanced Flexi-carbon Leg Experimental Heat Sink Advanced Energy Well Zionite Biocell Experimental Sensor Array Zionite Weapon Casing Zionite Weapon Casing Zionite Light Carapace Zionite Light Carapace Improved Light Armor Plating Improved Proton Missile Launcher Precision Rocket Launcher RU-N14's Throwing Claymores Phasing Sabre Self-destruct Interrupter [Rating: 101] Favorites ----------- Power Antimatter Reactor Engine Cooled Ion Engine Power Core Light Nuclear Core Reactor Antimatter Reactor Propulsion Light Treads Treads Light Treads Leg Carbon-fiber Leg Wheel Wheel Utility High-capacity Storage Unit Device Improved Heat Sink Storage High-capacity Storage Unit Processor Improved Target Analyzer Hackware Hacking Suite Protection Improved Light Armor Plating Weapon Enhanced Autogun Energy Gun Advanced Beam Rifle Energy Cannon Advanced Beam Cannon Ballistic Gun Enhanced Autogun Ballistic Cannon Hardcell Cannon Launcher Precision Rocket Launcher Special Weapon Molecular Deconstructor Impact Weapon Maul Slashing Weapon Chainsword Build | -11 -10 -10 -9 -9 -9 -8 -8 -8 -8 -8 -7 -7 -7 -7 -7 -7 -6 -6 -6 -6 -6 -6 -6 -6 -6 -6 ------- Run | Scr Mat Min Mat Min Exi Min Mat Gar Mat Sto Fac Gar Fac Low Low Dat Pro Fac Was Fac Gar Fac Low Low Zio Dee Slots Evolved 8 | . . . 2 . . . 2 . . . 2 . . . . . . 2 . . . . . . . . Power 1 | . . . . . . . . . . . . . . . . . . 1 . . . . . . . . Propulsion 2 | . . . 1 . . . . . . . 1 . . . . . . . . . . . . . . . Utility 4 | . . . 1 . . . 1 . . . 1 . . . . . . 1 . . . . . . . . Weapon 1 | . . . . . . . 1 . . . . . . . . . . . . . . . . . . . Parts Attached 310 | 6 6 9 39 3 . 7 5 20 16 25 9 23 10 22 16 10 11 5 10 3 14 2 1 7 6 25 Power 21 | 1 1 1 6 . . 1 . 1 1 2 . 1 . . 1 1 1 . 1 1 . . . . . 1 Engine 15 | 1 1 1 5 . . . . 1 1 2 . 1 . . 1 1 . . . . . . . . . . Core 2 | . . . 1 . . 1 . . . . . . . . . . . . . . . . . . . . Reactor 4 | . . . . . . . . . . . . . . . . . 1 . 1 1 . . . . . 1 Propulsion 51 | 2 1 . 9 1 . 1 1 5 3 7 1 5 1 1 3 1 3 . 2 . 1 . . . 1 2 Treads 38 | 2 1 . 3 1 . . . 5 3 7 1 5 1 1 3 . . . 2 . 1 . . . 1 1 Leg 5 | . . . . . . . . . . . . . . . . 1 3 . . . . . . . . 1 Wheel 8 | . . . 6 . . 1 1 . . . . . . . . . . . . . . . . . . . Hover . | . . . . . . . . . . . . . . . . . . . . . . . . . . . Flight . | . . . . . . . . . . . . . . . . . . . . . . . . . . . Utility 111 | 1 1 6 5 . . 5 1 3 2 6 7 5 3 12 8 3 5 4 2 . 5 2 1 5 4 15 Device 56 | . 1 5 1 . . 3 . 1 1 2 3 3 . 9 7 1 3 3 2 . 3 1 . 3 3 1 Storage 4 | 1 . 1 1 . . . . . . . . . . . . . . . . . . . . . . 1 Processor 7 | . . . . . . . 1 1 . 1 1 . . 1 . 1 . 1 . . . . . . . . Hackware 3 | . . . . . . . . . . 1 1 . 1 . . . . . . . . . . . . . Protection 41 | . . . 3 . . 2 . 1 1 2 2 2 2 2 1 1 2 . . . 2 1 1 2 1 13 Artifact . | . . . . . . . . . . . . . . . . . . . . . . . . . . . Weapon 127 | 2 3 2 19 2 . . 3 11 10 10 1 12 6 9 4 5 2 1 5 2 8 . . 2 1 7 Energy Gun 25 | . 3 1 7 . . . . . 2 . . . . 5 2 4 . . . . . . . . . 1 Energy Cannon 3 | . . . 2 1 . . . . . . . . . . . . . . . . . . . . . . Ballistic Gun 56 | 2 . . 7 . . . 3 6 7 6 1 6 3 1 . . 2 1 3 1 6 . . 1 . . Ballistic Cannon 1 | . . . . . . . . . . . . . . . . . . . 1 . . . . . . . Launcher 17 | . . 1 1 1 . . . 4 . 3 . 1 1 2 2 . . . . . . . . . . 1 Special Weapon 6 | . . . . . . . . . . . . . . . . . . . . . . . . 1 1 4 Impact Weapon 11 | . . . 2 . . . . 1 1 1 . 5 1 . . . . . . . . . . . . . Slashing Weapon 8 | . . . . . . . . . . . . . 1 1 . 1 . . 1 1 2 . . . . 1 Piercing Weapon . | . . . . . . . . . . . . . . . . . . . . . . . . . . . Special Melee Weapon . | . . . . . . . . . . . . . . . . . . . . . . . . . . . Unidentified Prototypes 17 | . . 1 3 . . . . . 3 . . 1 . . . . . . . . . . . 1 1 7 Corrupted Parts 1 | . . . . . . 1 . . . . . . . . . . . . . . . . . . . . System Corruption 6 | . . . . . . 6 . . . . . . . . . . . . . . . . . . . . Parts Lost 54 | . . 1 10 . . 1 1 6 2 4 . 2 . 2 5 2 2 . . . . . . . . 16 Power 9 | . . 1 2 . . . . 1 . 1 . . . . 1 . 1 . . . . . . . . 2 Propulsion 18 | . . . 4 . . . 1 3 1 1 . 2 . . 2 2 . . . . . . . . . 2 Utility 18 | . . . 1 . . 1 . 1 . 1 . . . 2 2 . . . . . . . . . . 10 Weapon 9 | . . . 3 . . . . 1 1 1 . . . . . . 1 . . . . . . . . 2 Highest Loss Streak 14 | . . 1 4 . . 1 1 3 1 2 . 1 . 1 5 1 1 . . . . . . . . 14 To Critical Strikes 1 | . . . . . . . . . . . . 1 . . . . . . . . . . . . . . Average Slot Usage (%) 91 | . 97 99 97 100 100 95 90 96 98 98 100 98 91 90 86 80 88 93 88 86 86 86 86 82 79 69 Engine 5 | . 14 13 9 11 11 6 . 7 9 7 7 7 7 7 6 7 2 . 4 2 . . . . . . Reactor 3 | . . . . . . . . . . . . . . . . . 4 6 6 9 13 13 13 13 13 12 Treads 18 | . 27 28 16 11 11 11 9 24 26 27 30 28 22 23 21 15 1 . 8 13 13 13 13 13 12 12 Leg 1 | . . . . . . . . . . . . . . . . 1 23 26 8 . . . . . . . Wheel 3 | . . . 15 22 22 22 16 2 . . . . . . . . . . . . . . . . . . Device 8 | . 12 14 15 11 11 12 9 9 7 3 10 3 . 6 7 11 8 13 13 13 7 6 6 6 12 3 Storage 8 | . 14 14 11 11 11 11 9 9 9 9 7 7 7 7 7 7 7 6 6 6 6 6 6 6 6 6 Processor 8 | . . . . . . . 5 13 18 17 15 15 8 6 5 5 7 7 13 13 13 13 13 13 13 12 Hackware 4 | . . . . . . . . . . 5 . 7 13 7 7 7 7 6 6 6 6 6 6 6 4 . Protection 4 | . . . 6 11 11 6 9 2 1 . 3 3 7 6 4 2 1 4 . . 4 5 6 6 1 8 Energy Gun 6 | . 24 27 7 . . . . . . . . . . 8 21 17 9 2 . . . . . . . . Energy Cannon 1 | . . . 3 10 11 11 3 . . . . . . . . . . . . . . . . . . . Ballistic Gun 11 | . 3 . 10 11 11 11 19 24 25 26 23 19 19 9 . . 12 17 19 14 19 20 20 11 4 . Special Weapon 1 | . . . . . . . . . . . . . . . . . . . . . . . . 3 8 9 Naked Turns . | . . . . . . . . . . . . . . . . . . . . . . . . . . . Heaviest Build 93 | 10 13 19 58 58 58 62 62 64 60 61 62 60 70 71 69 65 74 73 78 82 89 88 88 88 88 93 Greatest Support 145 | 40 40 40 60 20 20 20 26 60 60 60 80 115 115 123 126 118 75 73 140 140 145 145 145 145 145 140 Greatest Overweight (x) 6 | . . . 5 2 2 3 6 2 . 1 . . . . . . 1 . 1 . . . . . . 1 Average Overweight (x) . | . . . 1 2 2 2 2 . . . . . . . . . . . . . . . . . . . Largest Inventory Capacity 20 | 8 8 10 20 20 20 20 20 20 20 20 20 20 20 20 20 20 20 20 20 20 20 20 20 20 20 20 Average Capacity 18 | 6 8 9 17 20 20 20 20 20 20 20 20 20 20 20 20 20 20 20 20 20 20 20 20 20 20 20 Most Carried 20 | 4 8 9 20 20 20 20 19 17 20 20 19 20 20 20 20 20 20 19 20 20 20 20 20 20 20 20 Average Carried 17 | 2 7 8 16 19 20 19 16 14 17 19 18 19 19 19 18 18 19 19 19 20 19 20 20 19 19 17 Final Capacity 20 | 8 8 10 20 20 20 20 20 20 20 20 20 20 20 20 20 20 20 20 20 20 20 20 20 20 20 20 Final Carried 20 | 4 8 9 20 20 20 19 15 17 20 19 19 20 20 20 18 20 20 19 20 20 20 20 20 20 20 8 Class Distribution -------------------- 35% | Scavenger-Gunner 34% | Scavenger-Mutant 18% | Mutant 4% | Skirmisher Dominant Class ---------------- Mutant | -10/Materials Mutant | -10/Mines Scavenger-Mutant | -9/Materials Scavenger-Mutant | -9/Mines Scavenger-Mutant | -9/Exiles Scavenger-Mutant | -8/Mines Scavenger-Gunner | -8/Materials Scavenger-Gunner | -8/Garrison Scavenger-Gunner | -8/Materials Scavenger-Gunner | -8/Storage Commander-Gunner | -7/Factory Scavenger-Gunner | -7/Garrison Scavenger-Gunner | -7/Factory Mutant | -7/Lower Caves Skirmisher | -7/Lower Caves Scavenger-Gunner | -7/Data Miner Scavenger-Gunner | -6/Proximity Caves Scavenger-Gunner | -6/Factory Scavenger-Gunner | -6/Waste Scavenger-Mutant | -6/Factory Scavenger-Mutant | -6/Garrison Scavenger-Gunner | -6/Factory Scavenger-Gunner | -6/Lower Caves Scavenger-Mutant | -6/Lower Caves Scavenger-Mutant | -6/Zion Scavenger-Mutant | -6/Deep Caves Resources | -11 -10 -10 -9 -9 -9 -8 -8 -8 -8 -8 -7 -7 -7 -7 -7 -7 -6 -6 -6 -6 -6 -6 -6 -6 -6 -6 ----------- Run | Scr Mat Min Mat Min Exi Min Mat Gar Mat Sto Fac Gar Fac Low Low Dat Pro Fac Was Fac Gar Fac Low Low Zio Dee Matter Collected 7783 | 197 119 101 804 54 . 129 172 494 650 1259 184 900 196 323 311 100 344 . 382 30 563 36 126 102 98 109 Remotely 1162 | . . . . . . . . . . 114 . 616 . . . . . . 382 30 20 . . . . . Salvage Created 13009 | 51 280 288 1875 127 . 244 395 816 1147 1682 180 1061 515 223 381 395 650 . 1257 . 824 22 40 82 . 474 Parts 606 | 3 16 22 112 3 . 13 25 53 48 105 7 37 25 13 18 9 22 . 17 . 26 1 4 2 . 25 Haulers Intercepted 16 | . 1 . 4 . . . 2 . 3 5 . . 1 . . . . . . . . . . . . . Recyclers Shooed 6 | . . . 1 . . 1 . . 3 . 1 . . . . . . . . . . . . . . . Parts Field Recycled . | . . . . . . . . . . . . . . . . . . . . . . . . . . . Retrieved Matter . | . . . . . . . . . . . . . . . . . . . . . . . . . . . Parts Self-Destructed 57 | . . . . . . . . . . . . . . 12 13 . 16 . . . . . 14 2 . . Prevented 10 | . . . . . . . . . . . . . . . . . . . . . . . 10 . . . Kills | -11 -10 -10 -9 -9 -9 -8 -8 -8 -8 -8 -7 -7 -7 -7 -7 -7 -6 -6 -6 -6 -6 -6 -6 -6 -6 -6 ------- Run | Scr Mat Min Mat Min Exi Min Mat Gar Mat Sto Fac Gar Fac Low Low Dat Pro Fac Was Fac Gar Fac Low Low Zio Dee Combat Hostiles Destroyed 236 | . 6 10 27 3 . 4 3 22 13 36 2 11 6 7 10 4 12 . 4 . 4 1 1 2 . 48 Melee 1 | . . . . . . . . . . . . . . . . . . . . . . . . . . 1 Guns 133 | . 6 6 17 . . 1 3 13 13 27 2 9 1 3 6 2 12 . 4 . 4 1 1 2 . . Cannons 15 | . . . 6 1 . 3 . . . . . . . . . . . . . . . . . . . 5 AOE 80 | . . 4 4 2 . . . 9 . 9 . 1 5 3 3 . . . . . . . . . . 40 Classes Destroyed 25 | 2 5 1 4 . . 1 . 1 1 1 . . . . 2 . 1 . 2 . . . . . . 4 Worker 16 | 1 . . 8 . . . . . 1 6 . . . . . . . . . . . . . . . . Builder 9 | . 1 1 . . . 2 2 . . 3 . . . . . . . . . . . . . . . . Tunneler 4 | . . 3 . . . . 1 . . . . . . . . . . . . . . . . . . . Hauler 16 | . 1 . 4 . . . 2 . 3 5 . . 1 . . . . . . . . . . . . . Recycler 12 | 1 . . 3 . . . . . 4 . 1 . 3 . . . . . . . . . . . . . Minesweeper 1 | . . . . . . . . . . . . . . . . . 1 . . . . . . . . . Mechanic 3 | . . . . . . . . . 1 1 . . 1 . . . . . . . . . . . . . Operator 5 | . . . 1 . . . 1 . 1 . 1 . 1 . . . . . . . . . . . . . Watcher 7 | . 2 . 2 . . . 1 . . 1 . . 1 . . . . . . . . . . . . . Swarmer 43 | . 3 . 3 1 . . . 8 . 7 . 4 . 3 7 . 3 . . . 1 1 . 2 . . Grunt 85 | . 3 10 15 2 . 2 3 10 10 19 . 4 1 . . . 6 . . . . . . . . . Brawler 6 | . . . 1 . . . . . . . . 1 1 . . . 1 . . . 2 . . . . . Duelist 6 | . . . 1 . . 1 . . 1 . . . 2 . . . 1 . . . . . . . . . Protector 1 | . . . . . . . . . . 1 . . . . . . . . . . . . . . . . Sentry 26 | . . . 7 . . . . 2 2 9 1 1 2 . 1 . 1 . . . . . . . . . Hunter 5 | . . . . . . 1 . . . . 1 . . 2 1 . . . . . . . . . . . Programmer 6 | . . . . . . . . 2 . . . 1 . 2 . . . . . . . . 1 . . . Behemoth 2 | . . . . . . . . . . . . . . . 1 . . . . . 1 . . . . . Compactor 4 | . . . . . . . . . . . . . . . . . . . 4 . . . . . . . Enhanced Grunt 4 | . . . . . . . . . . . . . . . . 4 . . . . . . . . . . Z-Light 8 | . . . . . . . . . . . . . . . . . . . . . . . . . . 8 Samaritan 2 | . . . . . . . . . . . . . . . 1 . . . . . . . . 1 . . Assembler 2 | . . . . . . . . . . . . . . . . . . . . . . . . . . 2 Assembled 37 | . . . . . . . . . . . . . . . . . . . . . . . . . . 37 Golem 2 | . . . . . . . . . . . . . . . . . . . . . . . . . . 2 Wasp 1 | . . . . . . . . . . . . . . . . . . . . . 1 . . . . . Thug 1 | . . . . . . . . . . . . . . . . . . . . . 1 . . . . . Martyr 2 | . . . . . . . . . . . . . . . . . . . 2 . . . . . . . Best Kill Streak 39 | 1 6 6 7 2 . 3 4 7 7 10 2 3 7 3 3 1 3 . 2 . 1 1 1 2 . 39 Combat Bots Only 37 | . 5 4 4 2 . 3 3 7 3 5 1 3 5 3 3 1 3 . 2 . 1 1 1 2 . 37 Max Kills in Single Turn 23 | 1 1 4 2 1 . 1 2 3 1 3 1 1 6 2 2 1 2 . 1 . 1 1 1 2 . 23 Gunslinging 1 | . . . . . . . . . . 1 . . . . . . 1 . . . . . . 1 . . Exploded 22 | . . 2 1 1 . . . 3 . 3 . 1 5 2 2 . . . . . . . . . . 22 Melee 1 | . . . . . . . . . . . . . . . . . . . . . . . . . . 1 Uniques/NPCs Destroyed 1 | . . . . . . . . . . . . . . . . . . . . . . . . . . 1 Z-Imprinter (-6/Deep Caves) Combat | -11 -10 -10 -9 -9 -9 -8 -8 -8 -8 -8 -7 -7 -7 -7 -7 -7 -6 -6 -6 -6 -6 -6 -6 -6 -6 -6 -------- Run | Scr Mat Min Mat Min Exi Min Mat Gar Mat Sto Fac Gar Fac Low Low Dat Pro Fac Was Fac Gar Fac Low Low Zio Dee Damage Taken 14672 | . 300 404 1165 86 . 319 334 1061 485 1317 389 436 160 838 961 610 869 16 . . 753 77 277 53 . 3762 Core 1978 | . 64 103 181 13 . 47 35 150 115 130 37 23 . 67 15 46 77 . . . 65 . 24 . . 786 Absorbed by Shields . | . . . . . . . . . . . . . . . . . . . . . . . . . . . Reduced by Siege Mode 350 | . . . . . . . . . . . . . . 9 52 60 . . . . 40 . 9 . . 180 Redirected to Shielding 284 | . . . . . . . . . . . . . . . . . . . . . . . . . . 284 Regen/Repaired (Parts) 874 | . 100 . . . . . . . 127 103 . . 250 . . . . . 138 . 156 . . . . . Core Remaining (%) 51 | 100 . 33 . . . 39 . . . 21 . . . . . . 62 . . . . . . . . . Volleys Fired 706 | 3 24 33 97 9 . 21 25 42 49 96 11 62 7 14 24 26 34 . 20 . 42 3 8 15 3 38 Largest 3 | 2 2 2 2 2 . 2 3 3 3 3 3 3 3 3 3 3 3 . 3 . 3 3 3 3 1 1 Hottest 183 | 40 100 100 100 91 . 91 91 69 69 71 73 73 78 183 183 183 183 . 81 . 99 99 99 99 . 43 Shots Fired 1669 | 6 48 64 187 12 . 37 61 92 147 268 33 172 19 36 60 73 102 . 58 . 101 9 24 19 3 38 Gun 1516 | 6 48 62 172 3 . 15 47 79 147 259 33 169 16 34 53 73 102 . 58 . 101 9 24 6 . . Cannon 53 | . . . 11 6 . 22 14 . . . . . . . . . . . . . . . . . . . Launcher 49 | . . 2 4 3 . . . 13 . 9 . 3 3 2 7 . . . . . . . . . . 3 Special 51 | . . . . . . . . . . . . . . . . . . . . . . . . 13 3 35 Kinetic 1185 | 6 . . 136 3 . 15 47 79 147 259 33 169 16 20 . . 57 . 58 . 101 9 24 6 . . Thermal 350 | . 48 62 13 6 . 22 14 . . . . . . 14 53 73 45 . . . . . . . . . Explosive 57 | . . 2 4 . . . . 1 . 9 . 3 3 2 7 . . . . . . . . . . 26 Electromagnetic 49 | . . . 34 3 . . . 12 . . . . . . . . . . . . . . . . . . Robot Hit Streak 34 | 2 11 9 25 7 . 12 12 17 19 25 14 34 4 9 26 33 21 . 20 . 16 19 12 5 . 12 Robot Miss Streak 5 | 1 4 2 3 1 . 2 2 3 3 4 1 1 2 3 4 1 2 . 2 . 5 1 1 2 . 1 Penetration Max 1 | . . . . . . . . . . . . . . . . . 1 . 1 . 1 1 . . . . Secondary Targets 22 | . . . 2 . . . . 4 2 3 . 4 . . 2 . 3 . 1 . . . . 1 . . Max Gunslinging Chain 1 | . . . 1 . . . . 1 1 1 . 1 . . 1 . 1 . 1 . . . . 1 . . Shots Hit Robots 1195 | 4 30 45 139 9 . 25 41 49 114 189 27 133 10 21 37 60 80 . 51 . 70 6 17 6 . 32 Core Hits 598 | 2 14 25 65 4 . 10 15 40 46 92 6 58 16 12 15 27 31 . 16 . 26 2 2 3 . 71 Critical Kills 12 | . . . . . . . 1 1 1 6 . 2 . . . . . . . . 1 . . . . . Critical Parts Destroyed 26 | . . . . . . . . . 5 7 2 2 . . . . 2 . 1 . 3 . 3 1 . . Critical Strikes 71 | . 4 3 . . . . 1 1 6 13 2 4 . 1 4 10 7 . 5 . 6 . 3 1 . . Burn 27 | . 4 3 . . . . . . . . . . . 1 4 10 5 . . . . . . . . . Destroy 41 | . . . . . . . 1 1 6 13 2 3 . . . . 2 . 4 . 5 . 3 1 . . Smash 1 | . . . . . . . . . . . . 1 . . . . . . . . . . . . . . Sever 2 | . . . . . . . . . . . . . . . . . . . 1 . 1 . . . . . Melee Attacks 109 | . . . 2 . . . . 1 . 1 . 27 2 10 . 18 . . 4 3 40 . . . . 1 Impact 33 | . . . 2 . . . . 1 . 1 . 27 2 . . . . . . . . . . . . . Slashing 76 | . . . . . . . . . . . . . . 10 . 18 . . 4 3 40 . . . . 1 Piercing . | . . . . . . . . . . . . . . . . . . . . . . . . . . . Sneak Attacks 6 | . . . . . . . . . . . . . 1 . . 1 . . 4 . . . . . . . Combat Hostiles . | . . . . . . . . . . . . . . . . . . . . . . . . . . . Follow-up Attacks . | . . . . . . . . . . . . . . . . . . . . . . . . . . . Damage Inflicted 34475 | 36 554 858 2517 221 . 472 710 1572 1783 4420 508 2518 1578 766 951 961 1714 . 1287 . 3358 206 435 108 . 6942 Guns 19249 | 30 379 533 2011 29 . 145 465 760 1774 2976 439 2239 133 451 820 896 1714 . 1001 . 1705 206 435 108 . . Cannons 876 | . . . 191 113 . 327 245 . . . . . . . . . . . . . . . . . . . Explosions 11331 | . 175 303 315 68 . . . 812 . 1439 55 240 1362 315 131 . . . . . . . . . . 6116 Melee 2140 | . . . . . . . . . . . . 39 50 . . 65 . . 286 . 1653 . . . . 47 Ramming 100 | 6 . 22 . 11 . . . . 9 5 14 . 33 . . . . . . . . . . . . . Kinetic 15136 | 30 . . 1508 29 . 145 465 760 1774 2976 439 2239 133 261 . . 922 . 1001 . 1705 206 435 108 . . Thermal 5757 | . 379 533 292 113 . 327 245 209 . . 55 . 906 190 820 896 792 . . . . . . . . . Explosive 9583 | . 175 303 227 . . . . 181 . 1439 . 240 456 315 131 . . . . . . . . . . 6116 Electromagnetic 980 | . . . 490 68 . . . 422 . . . . . . . . . . . . . . . . . . Impact 89 | . . . . . . . . . . . . 39 50 . . . . . . . . . . . . . Slashing 2830 | . . . . . . . . . . . . . . . . 65 . . 286 . 1653 . . . . 826 Piercing . | . . . . . . . . . . . . . . . . . . . . . . . . . . . Highest Corruption 6 | . . . . . . 6 . 5 5 6 . 1 1 6 6 1 1 . . . . . . . . . Average Corruption 3 | . . . . . . 6 . 4 5 6 . 1 1 4 2 1 1 . . . . . . . . . Corruption Purged 5 | . . . . . . . . . . . . . . . 5 . . . . . . . . . . . Corruption Blocked . | . . . . . . . . . . . . . . . . . . . . . . . . . . . Effects 140 | . . . . . . 18 . 14 15 38 . 8 5 14 19 4 5 . . . . . . . . . Message Errors 40 | . . . . . . 8 . 3 1 9 . 5 1 4 6 . 3 . . . . . . . . . Matter Fused 31 | . . . . . . 2 . 4 6 7 . 2 . 4 4 . 2 . . . . . . . . . Heat Flow Errors 18 | . . . . . . 2 . 1 2 4 . . 1 1 6 1 . . . . . . . . . . Energy Discharges 13 | . . . . . . 2 . . 2 6 . 1 . 2 . . . . . . . . . . . . Parts Rejected 2 | . . . . . . . . 1 1 . . . . . . . . . . . . . . . . . Data Loss (minor) 13 | . . . . . . 2 . . 2 4 . . 1 1 2 1 . . . . . . . . . . Data Loss (major) 6 | . . . . . . 1 . 1 . 2 . . . 2 . . . . . . . . . . . . Misfires 10 | . . . . . . 1 . 3 1 2 . . 2 . 1 . . . . . . . . . . . Alerts 2 | . . . . . . . . . . 1 . . . . . 1 . . . . . . . . . . Weapon Failures 5 | . . . . . . . . 1 . 3 . . . . . 1 . . . . . . . . . . Overload Shots . | . . . . . . . . . . . . . . . . . . . . . . . . . . . Overflow Damage 666 | . 23 . 20 3 . 3 . 8 . 110 . 39 82 . 22 . . . 8 . 55 . . . . 293 Projectiles 38 | . . . . 3 . 3 . . . . . . . . . . . . . . . . . . . 32 Explosions 506 | . 23 . 20 . . . . 8 . 110 . . 62 . 22 . . . . . . . . . . 261 Melee 122 | . . . . . . . . . . . . 39 20 . . . . . 8 . 55 . . . . . Knockbacks . | . . . . . . . . . . . . . . . . . . . . . . . . . . . Impact . | . . . . . . . . . . . . . . . . . . . . . . . . . . . Kinetic . | . . . . . . . . . . . . . . . . . . . . . . . . . . . Secondary . | . . . . . . . . . . . . . . . . . . . . . . . . . . . Self-Inflicted Damage 433 | . 101 . 17 10 . . . 45 . 8 . 27 54 34 137 . . . . . . . . . . . Shots 12 | . 1 . 1 1 . . . 2 . 1 . 1 2 1 2 . . . . . . . . . . . Rammed 14 | . . 5 . 1 . . . . 1 1 3 . 3 . . . . . . . . . . . . . Targets Rammed 17 | 1 . 7 . 1 . . . . 1 1 3 . 3 . . . . . . . . . . . . . Kicked . | . . . . . . . . . . . . . . . . . . . . . . . . . . . Crushed 3 | 1 . 2 . . . . . . . . . . . . . . . . . . . . . . . . Highest Temperature 444 | . 153 123 221 175 . 332 66 84 236 282 5 45 146 192 265 444 234 . 32 . 3 . . . . 86 Average Temperature 65 | . 44 37 47 78 . 111 31 49 56 57 5 13 40 67 112 151 40 . 18 . 3 . . . . 30 Received Heat Transfer 3796 | . 57 225 453 9 . 81 189 324 315 666 120 102 18 . 102 . 318 . . . 156 12 36 . . 613 Effects 5 | . . . . . . . . . . 3 . . . . . 2 . . . . . . . . . . Shutdowns 1 | . . . . . . . . . . . . . . . . 1 . . . . . . . . . . Interference 3 | . . . . . . . . . . 3 . . . . . . . . . . . . . . . . Damage (minor) 1 | . . . . . . . . . . . . . . . . 1 . . . . . . . . . . Siege Activations 14 | . . . . . . . . . . . . . . 1 3 4 . . . . 2 . 1 . . 3 Total Turns 263 | . . . . . . . . . . . . . . 10 45 117 . . . . 27 . 13 . . 51 Longest Duration 56 | . . . . . . . . . . . . . . 10 27 56 . . . . 18 . 13 . . 22 Robots Corrupted 1 | . . . 1 . . . . . . . . . . . . . . . . . . . . . . . Combat Hostiles . | . . . . . . . . . . . . . . . . . . . . . . . . . . . Parts Fried 6 | . . . 3 . . . . . . . . 1 2 . . . . . . . . . . . . . Impact Corruptions 2 | . . . . . . . . . . . . 1 1 . . . . . . . . . . . . . Robots Melted 4 | . . . . . . . . . . . . . . 1 1 2 . . . . . . . . . . Combat Hostiles 4 | . . . . . . . . . . . . . . 1 1 2 . . . . . . . . . . Parts Melted 30 | . 8 2 . 1 . 1 . . . . . 1 . 2 5 6 4 . . . . . . . . . Heat Transferred 12444 | . 1406 1813 520 185 . 592 444 250 . . 50 . 450 407 1739 2886 1702 . . . . . . . . . Parts Sabotaged . | . . . . . . . . . . . . . . . . . . . . . . . . . . . Parts Stolen . | . . . . . . . . . . . . . . . . . . . . . . . . . . . Parts Stripped . | . . . . . . . . . . . . . . . . . . . . . . . . . . . Power Chain Reactions 3 | . . . 1 . . . . 2 . . . . . . . . . . . . . . . . . . Missiles Intercepted . | . . . . . . . . . . . . . . . . . . . . . . . . . . . Alert | -11 -10 -10 -9 -9 -9 -8 -8 -8 -8 -8 -7 -7 -7 -7 -7 -7 -6 -6 -6 -6 -6 -6 -6 -6 -6 -6 ------- Run | Scr Mat Min Mat Min Exi Min Mat Gar Mat Sto Fac Gar Fac Low Low Dat Pro Fac Was Fac Gar Fac Low Low Zio Dee Peak Influence 1796 | 5 324 229 435 304 . 100 131 646 615 1145 797 1549 1107 . . . . 59 40 157 1796 1303 . . . . Initial 942 | . 6 . 45 139 . . . 87 314 235 452 440 812 . . . . 44 20 . 109 942 . . . . Average 510 | 1 132 83 199 165 . 31 70 349 503 766 553 1121 931 . . . . 49 20 31 1102 1102 . . . . Maximum Alert Level 5 | . 1 1 2 1 . . . 2 2 4 3 4 4 . . . . . . . 5 4 . . . . Low Security (%) 40 | 100 75 86 49 92 . 100 100 12 . . . . . . . . . 100 100 100 11 . . . . . Level 1 13 | . 24 13 46 7 . . . 54 13 10 . . . . . . . . . . 6 . . . . . Level 2 15 | . . . 4 . . . . 33 86 31 80 18 . . . . . . . . 9 . . . . . Level 3 14 | . . . . . . . . . . 45 19 14 90 . . . . . . . 14 51 . . . . Level 4 13 | . . . . . . . . . . 12 . 67 9 . . . . . . . 27 48 . . . . Level 5 3 | . . . . . . . . . . . . . . . . . . . . . 29 . . . . . High Security . | . . . . . . . . . . . . . . . . . . . . . . . . . . . Max Security . | . . . . . . . . . . . . . . . . . . . . . . . . . . . Squads Dispatched 25 | . 1 . 4 . . . 2 . 2 7 4 . 3 . . . . . . 1 . 1 . . . . Investigation 8 | . 1 . 2 . . . . . 1 2 . . 1 . . . . . . . . 1 . . . . Extermination . | . . . . . . . . . . . . . . . . . . . . . . . . . . . Reinforcement 8 | . . . 2 . . . 2 . 1 1 1 . . . . . . . . 1 . . . . . . Assault 4 | . . . . . . . . . . 1 1 . 2 . . . . . . . . . . . . . Garrison 5 | . . . . . . . . . . 3 2 . . . . . . . . . . . . . . . Intercept . | . . . . . . . . . . . . . . . . . . . . . . . . . . . Searches Triggered . | . . . . . . . . . . . . . . . . . . . . . . . . . . . Construction Impeded 1 | . . . 1 . . . . . . . . . . . . . . . . . . . . . . . Haulers Reinforced . | . . . . . . . . . . . . . . . . . . . . . . . . . . . Active Scanning Responses . | . . . . . . . . . . . . . . . . . . . . . . . . . . . Cargo Convoy Interrupts . | . . . . . . . . . . . . . . . . . . . . . . . . . . . Stealth | -11 -10 -10 -9 -9 -9 -8 -8 -8 -8 -8 -7 -7 -7 -7 -7 -7 -6 -6 -6 -6 -6 -6 -6 -6 -6 -6 --------- Run | Scr Mat Min Mat Min Exi Min Mat Gar Mat Sto Fac Gar Fac Low Low Dat Pro Fac Was Fac Gar Fac Low Low Zio Dee Distress Signals 12 | . . 1 5 . . . 3 . . 2 . . 1 . . . . . . . . . . . . . Communications Jammed . | . . . . . . . . . . . . . . . . . . . . . . . . . . . Distress Signals . | . . . . . . . . . . . . . . . . . . . . . . . . . . . Times Spotted 362 | . 11 16 40 7 . 4 15 25 18 45 12 28 11 7 8 4 13 1 4 3 28 7 2 3 . 50 Peak Tracking Total 37 | . 4 4 5 3 . 3 7 7 3 5 8 5 6 3 3 1 4 1 3 3 7 3 1 3 . 37 Tactical Retreats 14 | . 1 2 . . . . . 1 4 2 . 1 . . . . 1 . . . . 1 . 1 . . Traps | -11 -10 -10 -9 -9 -9 -8 -8 -8 -8 -8 -7 -7 -7 -7 -7 -7 -6 -6 -6 -6 -6 -6 -6 -6 -6 -6 ------- Run | Scr Mat Min Mat Min Exi Min Mat Gar Mat Sto Fac Gar Fac Low Low Dat Pro Fac Was Fac Gar Fac Low Low Zio Dee Traps Triggered 11 | . . . 1 . . . . 2 1 3 . 1 . . . . . 1 . . 2 . . . . . Indirectly . | . . . . . . . . . . . . . . . . . . . . . . . . . . . Trap Hack Attempts . | . . . . . . . . . . . . . . . . . . . . . . . . . . . Triggered . | . . . . . . . . . . . . . . . . . . . . . . . . . . . Disarmed . | . . . . . . . . . . . . . . . . . . . . . . . . . . . Reprogrammed . | . . . . . . . . . . . . . . . . . . . . . . . . . . . Reused . | . . . . . . . . . . . . . . . . . . . . . . . . . . . Traps Extracted . | . . . . . . . . . . . . . . . . . . . . . . . . . . . Installed . | . . . . . . . . . . . . . . . . . . . . . . . . . . . Triggered 3 | . . . . . . . . . . . . . . . . . . . . . . . 3 . . . Most Traps Carried 7 | . . . . . . . . . . . . . . . . . 7 6 6 6 6 6 6 6 6 6 Machines | -11 -10 -10 -9 -9 -9 -8 -8 -8 -8 -8 -7 -7 -7 -7 -7 -7 -6 -6 -6 -6 -6 -6 -6 -6 -6 -6 ---------- Run | Scr Mat Min Mat Min Exi Min Mat Gar Mat Sto Fac Gar Fac Low Low Dat Pro Fac Was Fac Gar Fac Low Low Zio Dee Machines Disabled 40 | . 2 . . 1 . . 1 1 . 5 1 4 6 . . . . . . . 12 6 . . . 1 Max in Single Turn 4 | . 2 . . 1 . . 1 1 . 1 1 1 4 . . . . . . . 1 . . . . 1 Garrison Access 2 | . . . . . . . . . . . . . 2 . . . . . . . . . . . . . Garrison Relay 5 | . . . . . . . . 1 . . . 2 . . . . . . . . 2 . . . . . Machines Sabotaged . | . . . . . . . . . . . . . . . . . . . . . . . . . . . Garrisons Compromised . | . . . . . . . . . . . . . . . . . . . . . . . . . . . Overloaded Fab Kills . | . . . . . . . . . . . . . . . . . . . . . . . . . . . Hacking | -11 -10 -10 -9 -9 -9 -8 -8 -8 -8 -8 -7 -7 -7 -7 -7 -7 -6 -6 -6 -6 -6 -6 -6 -6 -6 -6 --------- Run | Scr Mat Min Mat Min Exi Min Mat Gar Mat Sto Fac Gar Fac Low Low Dat Pro Fac Was Fac Gar Fac Low Low Zio Dee Machines Accessed 55 | . 8 . 10 . 1 . 1 . 2 6 1 4 6 . 1 4 . . . 2 3 3 . 3 . . Terminals 34 | . 6 . 9 . . . . . 1 5 . 4 3 . . . . . . 1 3 2 . . . . Fabricators 1 | . . . . . . . . . . . . . 1 . . . . . . . . . . . . . Repair Stations 5 | . 1 . 1 . . . . . 1 1 . . 1 . . . . . . . . . . . . . Recycling Units 1 | . 1 . . . . . . . . . . . . . . . . . . . . . . . . . Scanalyzers 1 | . . . . . . . . . . . . . . . . . . . . . . 1 . . . . Garrison Access 4 | . . . . . . . 1 . . . 1 . 1 . . . . . . 1 . . . . . . Total Hacks 156 | . 18 . 24 . 1 . 2 . 9 15 1 10 18 . 1 32 . . . 3 6 11 . 5 . . Successful 88 | . 7 . 8 . 1 . 1 . 4 6 1 4 10 . 1 32 . . . 2 2 4 . 5 . . Failed 67 | . 10 . 16 . . . 1 . 5 9 . 6 8 . . . . . . 1 4 7 . . . . Catastrophic 13 | . 2 . 5 . . . . . . 1 . . 1 . . . . . . 1 2 1 . . . . Database Lockouts 1 | . 1 . . . . . . . . . . . . . . . . . . . . . . . . . Manual 59 | . 11 . 20 . . . . . . 10 . 2 7 1 . . . . . 2 . 6 . . . . Terminals 88 | . 14 . 22 . . . . . 6 13 . 10 9 . . . . . . 2 6 6 . . . . Fabricators 2 | . . . . . . . . . . . . . 2 . . . . . . . . . . . . . Repair Stations 13 | . 2 . 2 . . . . . 3 2 . . 4 . . . . . . . . . . . . . Recycling Units 2 | . 2 . . . . . . . . . . . . . . . . . . . . . . . . . Scanalyzers 5 | . . . . . . . . . . . . . . . . . . . . . . 5 . . . . Garrison Access 7 | . . . . . . . 2 . . . 1 . 3 . . . . . . 1 . . . . . . Terminal Hacks 65 | . 4 . 6 . 1 . . . 2 3 . 3 4 . 1 32 . . . 1 2 1 . 5 . . Record 15 | . . . . . 1 . . . . . . . . . . 11 . . . . . . . 3 . . Part Schematic 12 | . . . . . . . . . . . . . 1 . . 11 . . . . . . . . . . Robot Schematic 7 | . . . . . . . . . . . . . . . . 7 . . . . . . . . . . Robot Analysis 4 | . 1 . 1 . . . . . 1 1 . . . . . . . . . . . . . . . . Prototype ID Bank 5 | . 1 . 1 . . . . . . . . . . . . 3 . . . . . . . . . . Open Door 5 | . . . . . . . . . . 1 . . . . 1 . . . . . 1 . . 2 . . Branch Access Points 5 | . 1 . 1 . . . . . 1 . . . 1 . . . . . . . . 1 . . . . Emergency Access Points 2 | . . . . . . . . . . . . 1 . . . . . . . . 1 . . . . . Terminal Index 1 | . . . . . . . . . . . . . 1 . . . . . . . . . . . . . Unreport Threat 5 | . 1 . 1 . . . . . . 1 . . 1 . . . . . . 1 . . . . . . Recall Reinforcements 1 | . . . 1 . . . . . . . . . . . . . . . . . . . . . . . Hauler Manifests 1 | . . . 1 . . . . . . . . . . . . . . . . . . . . . . . Garrison Registry 1 | . . . . . . . . . . . . 1 . . . . . . . . . . . . . . Patrol Navigation 1 | . . . . . . . . . . . . 1 . . . . . . . . . . . . . . Fabricator Hacks 1 | . . . . . . . . . . . . . 1 . . . . . . . . . . . . . Build 1 | . . . . . . . . . . . . . 1 . . . . . . . . . . . . . Repair Station Hacks 10 | . 2 . . . . . . . 2 2 . . 4 . . . . . . . . . . . . . Scan Component 5 | . 1 . . . . . . . 1 1 . . 2 . . . . . . . . . . . . . Repair 5 | . 1 . . . . . . . 1 1 . . 2 . . . . . . . . . . . . . Recycling Unit Hacks . | . . . . . . . . . . . . . . . . . . . . . . . . . . . Scanalyzer 2 | . . . . . . . . . . . . . . . . . . . . . . 2 . . . . Insert Component 2 | . . . . . . . . . . . . . . . . . . . . . . 2 . . . . Garrison Access Hacks 4 | . . . . . . . 1 . . . 1 . 1 . . . . . . 1 . . . . . . Unlock Access 3 | . . . . . . . 1 . . . 1 . . . . . . . . 1 . . . . . . Seal Access 1 | . . . . . . . . . . . . . 1 . . . . . . . . . . . . . Unauthorized Hacks 6 | . 1 . 2 . . . . . . 1 . 1 . . . . . . . . . 1 . . . . Terminals 6 | . 1 . 2 . . . . . . 1 . 1 . . . . . . . . . 1 . . . . Botnet 6 | . 1 . 2 . . . . . . 1 . 1 . . . . . . . . . 1 . . . . Fabricators . | . . . . . . . . . . . . . . . . . . . . . . . . . . . Repair Stations . | . . . . . . . . . . . . . . . . . . . . . . . . . . . Recycling Units . | . . . . . . . . . . . . . . . . . . . . . . . . . . . Scanalyzers . | . . . . . . . . . . . . . . . . . . . . . . . . . . . Garrison Access . | . . . . . . . . . . . . . . . . . . . . . . . . . . . Data Cores Recovered 1 | . . . . . . . . . . . . . 1 . . . . . . . . . . . . . Used 1 | . . . . . . . . . . . . . 1 . . . . . . . . . . . . . Hacking Detections 41 | . 8 . 9 . . . 1 . 1 5 1 4 6 . . . . . . 1 2 3 . . . . Full Trace Events 8 | . 1 . 2 . . . . . . . . 2 1 . . . . . . . 1 1 . . . . Feedback Events 1 | . . . . . . . . . . . . 1 . . . . . . . . . . . . . . Corruption 1 | . . . . . . . . . . . . 1 . . . . . . . . . . . . . . Feedback Blocked . | . . . . . . . . . . . . . . . . . . . . . . . . . . . Robot Schematics Acquired 7 | . . . . . . . . . . . . . . . . 7 . . . . . . . . . . Robots Built . | . . . . . . . . . . . . . . . . . . . . . . . . . . . Authchips . | . . . . . . . . . . . . . . . . . . . . . . . . . . . Time . | . . . . . . . . . . . . . . . . . . . . . . . . . . . Total Robot Build Rating . | . . . . . . . . . . . . . . . . . . . . . . . . . . . Part Schematics Acquired 12 | . . . . . . . . . . . . . 1 . . 11 . . . . . . . . . . Parts Built 1 | . . . . . . . . . . . . . 1 . . . . . . . . . . . . . Authchips . | . . . . . . . . . . . . . . . . . . . . . . . . . . . Time 50 | . . . . . . . . . . . . . 50 . . . . . . . . . . . . . Total Part Build Rating 5 | . . . . . . . . . . . . . 5 . . . . . . . . . . . . . Parts Repaired 5 | . 1 . . . . . . . 1 1 . . 2 . . . . . . . . . . . . . Time 195 | . 26 . . . . . . . 51 32 . . 86 . . . . . . . . . . . . . Parts Recycled . | . . . . . . . . . . . . . . . . . . . . . . . . . . . Recycled Matter . | . . . . . . . . . . . . . . . . . . . . . . . . . . . Retrieved Matter . | . . . . . . . . . . . . . . . . . . . . . . . . . . . Retrieved Components . | . . . . . . . . . . . . . . . . . . . . . . . . . . . Parts Scanalyzed 1 | . . . . . . . . . . . . . . . . . . . . . . 1 . . . . Part Schematics Acquired . | . . . . . . . . . . . . . . . . . . . . . . . . . . . Parts Damaged . | . . . . . . . . . . . . . . . . . . . . . . . . . . . Bothacking | -11 -10 -10 -9 -9 -9 -8 -8 -8 -8 -8 -7 -7 -7 -7 -7 -7 -6 -6 -6 -6 -6 -6 -6 -6 -6 -6 ------------ Run | Scr Mat Min Mat Min Exi Min Mat Gar Mat Sto Fac Gar Fac Low Low Dat Pro Fac Was Fac Gar Fac Low Low Zio Dee Used RIF Installer . | . . . . . . . . . . . . . . . . . . . . . . . . . . . Robots Hacked . | . . . . . . . . . . . . . . . . . . . . . . . . . . . Non-combat . | . . . . . . . . . . . . . . . . . . . . . . . . . . . Combat . | . . . . . . . . . . . . . . . . . . . . . . . . . . . Robot Hacks Applied . | . . . . . . . . . . . . . . . . . . . . . . . . . . . Relay Couplers Released 24 | . . . . . . . . 4 . . . 11 2 . . . . . . . 7 . . . . . Machine Destruction 21 | . . . . . . . . 4 . . . 8 2 . . . . . . . 7 . . . . . Programmers 3 | . . . . . . . . . . . . 3 . . . . . . . . . . . . . . Fabnet Peak Effective % . | . . . . . . . . . . . . . . . . . . . . . . . . . . . Robots Rewired 10 | . . . . . . . . . . . . 6 . . . . . . . . 4 . . . . . Allies Hacked . | . . . . . . . . . . . . . . . . . . . . . . . . . . . Hacks Repelled . | . . . . . . . . . . . . . . . . . . . . . . . . . . . Allies | -11 -10 -10 -9 -9 -9 -8 -8 -8 -8 -8 -7 -7 -7 -7 -7 -7 -6 -6 -6 -6 -6 -6 -6 -6 -6 -6 -------- Run | Scr Mat Min Mat Min Exi Min Mat Gar Mat Sto Fac Gar Fac Low Low Dat Pro Fac Was Fac Gar Fac Low Low Zio Dee Total Allies 48 | . . 3 . 2 . . . . . 10 . 8 . . . . . . 19 . 6 . . . . . Largest Group 19 | . . 3 . 2 2 . . . . 10 10 8 2 . . . . . 19 17 17 4 1 1 1 1 Highest-Rated Group 702 | . . 40 . 45 45 . . . . 173 173 223 87 . . . . . 702 601 601 269 79 70 70 70 Highest-Rated Ally 148 | . . 16 . 31 31 . . . . 29 29 83 55 . . . . . 50 46 148 99 79 70 70 70 Total Orders . | . . . . . . . . . . . . . . . . . . . . . . . . . . . Ally Attacks 461 | . . 19 . 6 . . . . . . 61 83 5 . . . . . 28 18 211 17 7 3 . 3 Total Damage 10791 | . . 193 . 84 . . . . . . 753 1554 211 . . . . . 778 511 4902 1426 244 53 . 82 Kills 89 | . . 2 . 3 . . . . . . 7 22 3 . . . . . 2 3 36 8 3 . . . Allies Corrupted . | . . . . . . . . . . . . . . . . . . . . . . . . . . . Allies Melted . | . . . . . . . . . . . . . . . . . . . . . . . . . . . Intel | -11 -10 -10 -9 -9 -9 -8 -8 -8 -8 -8 -7 -7 -7 -7 -7 -7 -6 -6 -6 -6 -6 -6 -6 -6 -6 -6 ------- Run | Scr Mat Min Mat Min Exi Min Mat Gar Mat Sto Fac Gar Fac Low Low Dat Pro Fac Was Fac Gar Fac Low Low Zio Dee Robot Analysis Total 135 | . 1 . 1 . . . . . 1 1 . . . . . 131 . . . . . . . . . . Derelict Logs Recovered 11 | . . 2 . 2 . . . . . . . . . 2 1 . . . . . . . 1 1 2 . Drone Launches . | . . . . . . . . . . . . . . . . . . . . . . . . . . . Drone Recoveries . | . . . . . . . . . . . . . . . . . . . . . . . . . . . Exploration | -11 -10 -10 -9 -9 -9 -8 -8 -8 -8 -8 -7 -7 -7 -7 -7 -7 -6 -6 -6 -6 -6 -6 -6 -6 -6 -6 ------------- Run | Scr Mat Min Mat Min Exi Min Mat Gar Mat Sto Fac Gar Fac Low Low Dat Pro Fac Was Fac Gar Fac Low Low Zio Dee Turns Passed 19616 | 103 665 1236 1547 639 147 672 225 538 612 1097 449 1397 772 876 1551 596 594 44 612 113 1421 168 481 672 1576 813 Spaces Moved 10263 | 55 344 637 849 526 134 521 97 221 252 421 245 665 431 472 673 227 286 31 333 53 691 81 278 379 965 396 Core 6 | 6 . . . . . . . . . . . . . . . . . . . . . . . . . . Treads 7927 | 49 344 637 214 . . . . 201 252 421 245 665 431 472 673 227 35 . 218 53 691 81 278 379 965 396 Legs 397 | . . . . . . . . . . . . . . . . . 251 31 115 . . . . . . . Wheels 1933 | . . . 635 526 134 521 97 20 . . . . . . . . . . . . . . . . . . Hover . | . . . . . . . . . . . . . . . . . . . . . . . . . . . Flight . | . . . . . . . . . . . . . . . . . . . . . . . . . . . Fastest Speed 50 | 50 160 160 110 110 110 110 110 120 160 160 160 160 160 160 160 160 120 120 120 160 160 160 160 160 160 160 Average Speed 150 | 148 160 160 125 110 110 110 117 168 160 162 160 160 160 160 160 160 157 120 146 160 160 160 160 160 160 160 Slowest Speed 240 | 160 160 160 240 110 110 125 170 240 160 240 160 160 160 160 160 160 190 120 240 160 160 160 160 160 160 240 Overloaded Moves . | . . . . . . . . . . . . . . . . . . . . . . . . . . . Propulsion Burnouts . | . . . . . . . . . . . . . . . . . . . . . . . . . . . Robots Hopped . | . . . . . . . . . . . . . . . . . . . . . . . . . . . Cave-ins Triggered 1 | . . . . . . . . . . . . . . 1 . . . . . . . . . . . . Exploration Rate (%) 52 | 6 65 92 73 98 51 77 15 39 23 90 8 78 16 63 76 80 44 2 88 1 87 4 62 51 85 55 Regions Visited 26 Branch Regions 13 Pre-discovered Areas 33 | . . 1 . . 1 . . . . . . . . 1 1 25 . . . . . . 1 1 2 . Known Exits Taken 12 | . 1 . 1 1 . 1 1 . 1 1 1 . 1 1 . . . . . 1 . 1 . . . . Unknown Exits Taken 9 | 1 . 1 . . 1 . . . . . . . . . 1 1 1 . . . . . 1 1 1 . Scrap Searched 20 | . . 1 . 1 . . . . . . . . . 4 4 . . . . . . . 2 4 4 . Spaces Dug 87 | . . . 2 . . . . 3 . 1 . 12 . 50 . . . . . 3 9 . . . . 7 Terrain Destroyed 433 | . 31 14 30 . . . . 11 . 61 . 51 40 53 92 . . . . 3 11 2 7 1 . 26 Melee 37 | . . . 2 . . . . . . 1 . 12 . 10 . . . . . 3 9 . . . . . Projectile 17 | . . . . . . . . . . . . . . 3 . . . . . . 2 2 7 1 . 2 AOE 379 | . 31 14 28 . . . . 11 . 60 . 39 40 40 92 . . . . . . . . . . 24 Terrain Rammed . | . . . . . . . . . . . . . . . . . . . . . . . . . . . Walls Destroyed . | . . . . . . . . . . . . . . . . . . . . . . . . . . . Machines Disabled . | . . . . . . . . . . . . . . . . . . . . . . . . . . . Actions | -11 -10 -10 -9 -9 -9 -8 -8 -8 -8 -8 -7 -7 -7 -7 -7 -7 -6 -6 -6 -6 -6 -6 -6 -6 -6 -6 --------- Run | Scr Mat Min Mat Min Exi Min Mat Gar Mat Sto Fac Gar Fac Low Low Dat Pro Fac Was Fac Gar Fac Low Low Zio Dee Total 12961 | 68 412 785 1142 575 133 585 159 308 350 657 280 860 506 549 1096 379 366 37 417 75 872 112 297 415 993 533 Wait 1185 | . 27 94 96 34 . 34 29 15 17 95 6 33 33 22 377 83 23 . 37 15 27 27 10 8 8 35 Move 10236 | 55 343 636 848 525 133 520 97 220 251 420 245 660 430 471 672 226 285 31 332 53 688 80 277 378 964 396 Hop . | . . . . . . . . . . . . . . . . . . . . . . . . . . . Pick Up 127 | 4 7 2 30 1 . . 1 7 6 7 2 10 9 4 3 8 5 . 3 . 4 . . 2 6 6 Fast Attach 82 | 6 2 1 16 . . 2 . 3 5 5 3 4 3 2 2 1 5 1 4 1 2 . . 1 1 12 Attach 70 | . 2 1 9 . . . 5 6 5 4 3 3 1 1 3 7 3 1 . . . . . 1 2 13 Detach 35 | . . 1 4 . . . . 1 3 1 2 1 1 1 1 4 2 . 1 . . . . 2 1 9 Swap 158 | . 2 7 14 3 . 5 . 11 6 16 3 16 6 19 11 2 3 3 6 2 12 2 1 5 3 . Drop 158 | . 5 3 26 2 . 3 2 2 7 11 2 15 11 5 3 4 6 1 10 1 8 . 1 3 5 22 Fire 706 | 3 24 33 97 9 . 21 25 42 49 96 11 62 7 14 24 26 34 . 20 . 42 3 8 15 3 38 Melee 109 | . . . 2 . . . . 1 . 1 . 27 2 10 . 18 . . 4 3 40 . . . . 1 Ram 1 | . . . . 1 . . . . . . . . . . . . . . . . . . . . . . Kick . | . . . . . . . . . . . . . . . . . . . . . . . . . . . Crush 15 | . . 7 . . . . . . 1 1 3 . 3 . . . . . . . . . . . . . Escape Stasis 1 | . . . . . . . . . . . . . . . . . . . . . 1 . . . . . Rewire 78 | . . . . . . . . . . . . 29 . . . . . . . . 48 . . . . 1 Trap . | . . . . . . . . . . . . . . . . . . . . . . . . . . . Miscellaneous . | . . . . . . . . . . . . . . . . . . . . . . . . . . . Route ------- -11/Scrapyard -10/Materials (discovered 3 exits: *Mat x2 / *Min) -10/Mines -9/Materials (discovered 5 exits: *Mat x3 / *Min x2) -9/Mines (discovered 3 exits: *Mat x2 / *Exi) -9/Exiles -8/Mines -8/Materials (discovered 2 exits: Fac / Gar) -8/Garrison -8/Materials (discovered 2 exits: *Sto x2) -8/Storage -7/Factory -7/Garrison (discovered 3 exits: *Fac x3) -7/Factory (discovered 2 exits: *Low x2) -7/Lower Caves -7/Lower Caves -7/Data Miner -6/Proximity Caves -6/Factory (discovered 2 exits: Fac x2) -6/Waste -6/Factory -6/Garrison (discovered 3 exits: *Fac x3) -6/Factory (discovered 2 exits: *Low x2) -6/Lower Caves -6/Lower Caves (discovered 2 exits: Fac / *Zio) -6/Zion (discovered 2 exits: [*Dee] / [*Pro]) -6/Deep Caves History --------- Turn | Location | Event 2 | -11/Scrapyard | Met Revision 17 9 | -11/Scrapyard | Discovered new exit (range 15) 104 | -11/Scrapyard | Entered Materials 303 | -10/Materials | Build established: Mutant 394 | -10/Materials | Central database locked down 438 | -10/Materials | Repaired Lgt. Treads 555 | -10/Materials | Discovered new exit (range 5) 715 | -10/Materials | Identified exit to Mines 730 | -10/Materials | Discovered new exit (range 3) 769 | -10/Materials | Entered Mines 806 | -10/Mines | Received a Rocket Launcher from a helpful Derelict 856 | -10/Mines | Learned 4 Materials zone layouts 1034 | -10/Mines | Found a damaged Exp. Sensor Array with a note attached 1038 | -10/Mines | Found Prototype Device 1038 | -10/Mines | Identified Exp. Sensor Array 1255 | -10/Mines | Assisted by bots powering up and referring to "LRC-V3" 1352 | -10/Mines | Excavation squad dispatched 1352 | -10/Mines | A large section of the Mines collapsed 1602 | -10/Mines | Excavation squad dispatched 1747 | -10/Mines | Discovered new exit (range 12) 1819 | -10/Mines | Core integrity fell below 50% 2005 | -10/Mines | Entered Materials 2005 | -9/Materials | Evolved 2 slots: Propulsion x1, Utility x1 2006 | -9/Materials | Identified exit to Materials 2305 | -9/Materials | Identified exit to Mines 2343 | -9/Materials | Discovered exit to Materials (range 8) 2471 | -9/Materials | Lost 3 parts (1p2n) 2910 | -9/Materials | Build established: Scavenger-Mutant 2994 | -9/Materials | Lost 4 parts (1p1n1u1w) 3068 | -9/Materials | Discovered exit to Materials (range 15) 3552 | -9/Materials | Entered Mines 3722 | -9/Mines | Discovered exit to Materials (range 5) 3890 | -9/Mines | A weapon hastily lodged in a ceiling crevice suddenly fell to the ground 3985 | -9/Mines | Discovered exit to Materials (range 11) 4002 | -9/Mines | Identified exit to Exiles 4015 | -9/Mines | Joined a pair of Derelicts in attacking an 0b10 outpost 4152 | -9/Mines | Deemed a non-threat by the Exiles lab entrance 4191 | -9/Mines | Entered Exiles 4191 | -9/Exiles | Accompanied by 2 allies 4218 | -9/Exiles | Met 8R-AWN 4221 | -9/Exiles | Led the pair of lost Derelicts to a safe place 4237 | -9/Exiles | Met EX-HEX 4268 | -9/Exiles | Met EX-BIN 4284 | -9/Exiles | Met EX-DEC 4288 | -9/Exiles | Learned location of Zion (-6) 4328 | -9/Exiles | Discovered new exit (range 10) 4338 | -9/Exiles | Entered Mines 4416 | -8/Mines | Core integrity fell below 50% 4927 | -8/Mines | Discovered exit to Materials (range 8) 5010 | -8/Mines | Entered Materials 5010 | -8/Materials | Evolved 2 slots: Utility x1, Weapon x1 5011 | -8/Materials | Identified exit to Factory 5235 | -8/Materials | Identified exit to Garrison 5235 | -8/Materials | Entered Garrison 5265 | -8/Garrison | Triggered checkpoint 5324 | -8/Garrison | Destroyed 7 combat bots 5330 | -8/Garrison | Lost 3 parts (1p1n1u) 5499 | -8/Garrison | Garrison Relay disabled 5632 | -8/Garrison | Lost 3 parts (2n1w) 5678 | -8/Garrison | Triggered checkpoint 5692 | -8/Garrison | Triggered checkpoint 5757 | -8/Garrison | Discovered new exit (range 10) 5773 | -8/Garrison | Entered Materials 5806 | -8/Materials | Identified exit to Storage 6020 | -8/Materials | Repaired Imp. Assault Rifle 6115 | -8/Materials | Core integrity fell below 50% 6331 | -8/Materials | Build established: Scavenger-Gunner 6385 | -8/Materials | Entered Storage 6452 | -8/Storage | Garrison activated, responded to threat 7185 | -8/Storage | First assault squad dispatched 7198 | -8/Storage | Repaired Hvy. Assault Rifle 7433 | -8/Storage | Discovered exit to Factory (range 15) 7457 | -8/Storage | Assisted by bots powering up and referring to "LRC-V3" 7482 | -8/Storage | Entered Factory 7482 | -7/Factory | Accompanied by 10 allies 7482 | -7/Factory | Evolved 2 slots: Propulsion x1, Utility x1 7764 | -7/Factory | Build established: Commander-Gunner 7777 | -7/Factory | Garrison activated, responded to threat 7882 | -7/Factory | First assault squad dispatched 7931 | -7/Factory | Identified exit to Garrison 7931 | -7/Factory | Entered Garrison 7931 | -7/Garrison | Accompanied by 5 allies 7974 | -7/Garrison | Triggered checkpoint 8000 | -7/Garrison | Garrison Relay disabled 8002 | -7/Garrison | Triggered checkpoint 8122 | -7/Garrison | Triggered checkpoint 8307 | -7/Garrison | Triggered checkpoint 8313 | -7/Garrison | Triggered checkpoint 8320 | -7/Garrison | Triggered checkpoint 8324 | -7/Garrison | Triggered checkpoint 8442 | -7/Garrison | Discovered new exit (range 76) 8442 | -7/Garrison | Discovered new exit (range 42) 8442 | -7/Garrison | Discovered new exit (range 20) 8572 | -7/Garrison | Found embedded Infiltrators 8608 | -7/Garrison | Garrison Relay disabled 8781 | -7/Garrison | Attempted to access garrison exit controls, blocked by remote lockdown 8828 | -7/Garrison | Build established: Scavenger-Mutant 9187 | -7/Garrison | Attempted to access garrison exit controls, blocked by remote lockdown 9328 | -7/Garrison | Entered Factory 9328 | -7/Factory | Accompanied by 2 allies 9412 | -7/Factory | Build established: Scavenger-Gunner 9583 | -7/Factory | Fabricated Prc. Rocket Launcher (x1) 9627 | -7/Factory | Repaired Enh. Autogun 9654 | -7/Factory | Repaired Lgt. Treads 9728 | -7/Factory | First assault squad dispatched 9847 | -7/Factory | Identified exit to Lower Caves 10100 | -7/Factory | Entered Lower Caves 10106 | -7/Lower Caves | Met a Warlord Commander 10112 | -7/Lower Caves | Found Unknown Device 10112 | -7/Lower Caves | Identified Encrypted Comm Array 10356 | -7/Lower Caves | Acquired the password to a Derelict Tinkerer's latest research 10366 | -7/Lower Caves | Found Prototype Special Weapon 10395 | -7/Lower Caves | P-60 Hacker assimilated allied Z7-26D(c) 10404 | -7/Lower Caves | Crushed by falling debris 10518 | -7/Lower Caves | Caught by Unaware searching for contraband prototypes 10782 | -7/Lower Caves | Learned location of 2 exits from Factory 10782 | -7/Lower Caves | Discovered new exit (range 7) 10790 | -7/Lower Caves | Identified exit to Lower Caves 10894 | -7/Lower Caves | Build established: Mutant 10976 | -7/Lower Caves | Entered another Lower Caves area 11408 | -7/Lower Caves | Build established: Skirmisher 12164 | -7/Lower Caves | Spotted B-75 Beast 12203 | -7/Lower Caves | Destroyed B-75 Beast 12233 | -7/Lower Caves | Lost 5 parts (1p2n2u) 12477 | -7/Lower Caves | Discovered new exit (range 4) 12494 | -7/Lower Caves | Attracted the attention of an 0b10 checkpoint 12527 | -7/Lower Caves | Entered Data Miner 12531 | -7/Data Miner | Discovered new exit (range 6) 12562 | -7/Data Miner | Met Data Miner 12592 | -7/Data Miner | Learned location of Section 7 (-2) 12592 | -7/Data Miner | Acquired the access code to Warlord's prototype stash 12616 | -7/Data Miner | Received God Mode back door access code from Data Miner 12644 | -7/Data Miner | Interfaced with the Data Conduit 13123 | -7/Data Miner | Entered Proximity Caves 13276 | -6/Proximity Caves | Build established: Scavenger-Gunner 13596 | -6/Proximity Caves | Attracted the attention of an 0b10 checkpoint 13704 | -6/Proximity Caves | Discovered new exit (range 11) 13717 | -6/Proximity Caves | Entered Factory 13717 | -6/Factory | Evolved 2 slots: Power x1, Utility x1 13718 | -6/Factory | Identified exit to Factory 13719 | -6/Factory | Loaded intel: 258 machine locations 13761 | -6/Factory | Sucked down chute 13761 | -6/Factory | Entered Waste 13821 | -6/Waste | Destroyed C-40 Crusher 13823 | -6/Waste | Spotted C-40 Crusher 13828 | -6/Waste | Destroyed C-40 Crusher 13850 | -6/Waste | Spotted C-40 Crusher 13878 | -6/Waste | Spotted C-40 Crusher 13891 | -6/Waste | Spotted C-40 Crusher 13923 | -6/Waste | Warlord forces began an assault 13926 | -6/Waste | Destroyed C-40 Crusher 13931 | -6/Waste | Allies destroyed C-40 Crusher 13947 | -6/Waste | Allies destroyed C-40 Crusher 13963 | -6/Waste | Destroyed C-40 Crusher 14051 | -6/Waste | Discovered new exit (range 12) 14373 | -6/Waste | Entered Factory 14373 | -6/Factory | Accompanied by 17 allies 14374 | -6/Factory | Loaded intel: 274 machine locations 14486 | -6/Factory | Identified exit to Garrison 14486 | -6/Factory | Entered Garrison 14486 | -6/Garrison | Accompanied by 17 allies 14487 | -6/Garrison | Loaded intel: 38 machine locations 14624 | -6/Garrison | Triggered checkpoint 14654 | -6/Garrison | Garrison Relay disabled 14724 | -6/Garrison | Triggered checkpoint 14727 | -6/Garrison | Triggered checkpoint 14729 | -6/Garrison | Spotted B-75 Beast 14736 | -6/Garrison | Triggered checkpoint 14748 | -6/Garrison | Allies destroyed B-75 Beast 14751 | -6/Garrison | Triggered checkpoint 14838 | -6/Garrison | Discovered new exit (range 13) 14887 | -6/Garrison | Garrison Relay disabled 14890 | -6/Garrison | Triggered checkpoint 14940 | -6/Garrison | Rescued a captive Derelict 14942 | -6/Garrison | Rescued a captive Derelict 15146 | -6/Garrison | Triggered checkpoint 15206 | -6/Garrison | Triggered checkpoint 15279 | -6/Garrison | Discovered new exit (range 13) 15502 | -6/Garrison | Triggered checkpoint 15509 | -6/Garrison | Spotted B-90 Cyclops 15525 | -6/Garrison | Allies destroyed B-90 Cyclops 15532 | -6/Garrison | Spotted B-90 Cyclops 15553 | -6/Garrison | Destroyed B-90 Cyclops 15606 | -6/Garrison | Rewired B-90 Cyclops 15625 | -6/Garrison | Rewired B-90 Cyclops 15672 | -6/Garrison | Discovered new exit (range 10) 15701 | -6/Garrison | Rewired Striker 15704 | -6/Garrison | Rewired Striker 15733 | -6/Garrison | Attempted to access garrison exit controls, blocked by remote lockdown 15907 | -6/Garrison | Entered Factory 15907 | -6/Factory | Accompanied by 4 allies 15908 | -6/Factory | Loaded intel: 303 machine locations 15971 | -6/Factory | Build established: Scavenger-Mutant 15993 | -6/Factory | Allies destroyed Striker 16050 | -6/Factory | Discovered new exit (range 14) 16059 | -6/Factory | Identified exit to Lower Caves 16075 | -6/Factory | Entered Lower Caves 16075 | -6/Lower Caves | Accompanied by 1 ally 16281 | -6/Lower Caves | Build established: Scavenger-Gunner 16346 | -6/Lower Caves | Spotted B-75 Beast 16361 | -6/Lower Caves | Allies destroyed B-75 Beast 16536 | -6/Lower Caves | Discovered new exit (range 11) 16556 | -6/Lower Caves | Entered another Lower Caves area 16556 | -6/Lower Caves | Accompanied by 1 ally 16627 | -6/Lower Caves | Learned location of 1 exit from Research 16829 | -6/Lower Caves | Identified Molecular Deconstructor 17116 | -6/Lower Caves | Build established: Scavenger-Mutant 17203 | -6/Lower Caves | Encountered a Warlord checkpoint 17204 | -6/Lower Caves | Discovered new exit (range 2) 17228 | -6/Lower Caves | Entered Zion 17228 | -6/Zion | Accompanied by 1 ally 17289 | -6/Zion | Learned 4 Factory zone layouts 17289 | -6/Zion | Discovered new exit (range 15) 17430 | -6/Zion | Learned Factory stockpile data 17453 | -6/Zion | Found Relay Coupler [Programmer] 17941 | -6/Zion | Learned Factory garrison access intel 18082 | -6/Zion | Discovered new exit (range 4) 18143 | -6/Zion | Received a hallucinogenic algorithm 18302 | -6/Zion | Found Prototype Special Weapon 18302 | -6/Zion | Identified RU-N14's Throwing Claymores 18305 | -6/Zion | Found RU-N14's Throwing Claymores 18411 | -6/Zion | Found RU-N14's Throwing Claymores 18597 | -6/Zion | Build established: Scavenger-Gunner 18796 | -6/Zion | Saw the warning signs outside the Deep Caves entrance 18804 | -6/Zion | Entered Deep Caves 18804 | -6/Deep Caves | Accompanied by 1 ally 18965 | -6/Deep Caves | Attacked by Z-Imprinter 18969 | -6/Deep Caves | Destroyed Z-Imprinter 18996 | -6/Deep Caves | Found Prototype Protection 18996 | -6/Deep Caves | Identified Zio. Weapon Casing 19069 | -6/Deep Caves | Found Prototype Protection 19069 | -6/Deep Caves | Identified Zio. Heavy Carapace 19092 | -6/Deep Caves | Z-Facility disabled 19133 | -6/Deep Caves | Found Zio. Weapon Casing 19235 | -6/Deep Caves | Found Zio. Heavy Carapace 19258 | -6/Deep Caves | Found Zio. Weapon Casing 19275 | -6/Deep Caves | Build established: Scavenger-Mutant 19293 | -6/Deep Caves | Found Zio. Weapon Casing 19302 | -6/Deep Caves | Found Zio. Weapon Casing 19536 | -6/Deep Caves | Triggered Deep Caves wall 19536 | -6/Deep Caves | Spotted AS-26122 19536 | -6/Deep Caves | Spotted AS-30073 19545 | -6/Deep Caves | Destroyed AS-26122 19551 | -6/Deep Caves | Destroyed AS-30073 19560 | -6/Deep Caves | Spotted as-22221 19560 | -6/Deep Caves | Spotted as-66315 19568 | -6/Deep Caves | Destroyed 37 combat bots 19587 | -6/Deep Caves | Exposed GOLEM chamber 19588 | -6/Deep Caves | Core integrity fell below 50% 19595 | -6/Deep Caves | Destroyed as-22221 19607 | -6/Deep Caves | Core integrity fell below 20% 19617 | -6/Deep Caves | Destroyed by as-66315 with Assembled Focal Cannon Last Messages --------------- 19600_ Zio. Light DM Reactor destroyed. 19600_ RU-N14's Throwing Claymores destroyed. 19601_ as-66315 core entropy levels peaking. 19602_ Extracted 15 energy. 19602_ as-66315 core destabilizing. 19603_ Extracted 15 energy. 19603_ Wall Chamber breached. 19603_ A GOLEM Unit tumbles out of the Wall Chamber. 19604_ Extracted 15 energy. 19604_ as-66315 core entropy levels peaking. 19604_ Destroyed Imp. Heat Sink. 19605_ Extracted 25 energy. 19606_ Imp. Light Armor Plating destroyed. 19606_ LT-MYJ(g) destroyed. 19607_ Extracted 25 energy. 19609_ Zio. Weapon Casing destroyed. 19611_ Extracted 3 energy. 19614_ GOLEM Unit springs to life. 19614_ A GOLEM Unit tumbles out of the Wall Chamber. 19615_ as-17842 GOLEM Unit beginning Prototype Leg integration. Map ----- +----------------------------------------------------+ | ????????????????????????????????? | | ????????????????????????????????? | | ????????????????????????????????? | | ????????????????????????????????? | | ????????????????????????????????? | | ????????????????????????????????? | | ????????????????????????????????? | | ????????????????????????????????? | | ????????????????????????????????? | | ?????????????????? ???????????? | | ?????????"" ???????????? | | ????????? ## ????????? | | ????????" # #???????? | | ????????" & ??????? | | ????????? ???????? | | ?????????" ????????? | | ?????????" ##???????? | | ?????????" ????????? | | ?????????" #?###?????? | | ????????"G #?# #?????? | | ??????### ### ####??? | | ??""""" # ???? | | ??"! * ! s ##????? | | ??"=! * ###??? | | ??" !! #??? | | ??"! @ * ###??? | | ??" ! ##???? | | ??" ] #???? | | ??" #???? | | ??""""" b ! #???? | | ??????### ** #???? | | ????????"GG * * #???? | | ?????????! #???? | | ????????? #???? | | ????????? = = ##??? | | ????????? = #??? | | ????????? [ #??? | | ????????" [ #??? | | ????????" #### | | ????????? ! [ | | ?????????"" [ | | ?????????????? | | ?????????????? #### | | ??????????????? #??? | | ??????????????? ##??? | | ??????????????? # # ????? | | ????????????????#### ## ## #????? | | ???????????????????# ?# ?##?????? | | ???????????????????#????????????? | | ????????????????????????????????? | +----------------------------------------------------+ Best States ------------- Heat Dissipation 72 Energy Generation 43 Energy Capacity 425 Matter Stores 300 Matter Capacity 300 Sight Range 16 Robot Scan Range 20 Terrain Scan Density 10 Armor Coverage 2700 Weapon Shielding 100 Evasion (%) 55 Targeting Accuracy 14 Target Analysis 6 Armor Integrity Analysis 30 Recoil Reduction 4 Particle Charging 20 Kinecelleration 30 Offensive Hacking 20 Defensive Hacking 10 Trap Extractor Capacity 6 Item Schematics ----------------- Imp. Signal Interpreter | -7/Factory | Hacked Combat Drone Bay | -7/Data Miner | Free Lgt. Regenerative Plating | -7/Data Miner | Free Cld. Cesium-ion Thruster | -7/Data Miner | Free Gravity Neutralizer | -7/Data Miner | Free Cld. Plasma Cannon | -7/Data Miner | Free Nuclear Pulse Array | -7/Data Miner | Free Adv. Trap Extractor | -7/Data Miner | Free Mass Driver | -7/Data Miner | Free Adv. Field Recycling Unit | -7/Data Miner | Free Hvy. Gauss Cannon | -7/Data Miner | Free Adv. Shield Generator | -7/Data Miner | Free Robot Schematics ------------------ G-47 Trooper | -7/Data Miner | Free H-66 Slayer | -7/Data Miner | Free I-36 Angel | -7/Data Miner | Free C-17 Slicer | -7/Data Miner | Free E-15 Imp | -7/Data Miner | Free M-22 Extractor | -7/Data Miner | Free R-10 Processor | -7/Data Miner | Free Fabricated ------------ Prc. Rocket Launcher | x1 | -7/Factory | Preloaded Alien Tech Used ----------------- None Achievements -------------- None Challenges ------------ None Game ------ Seed GhostGuidedReconstructor Manual? 0 Play Time 02:24:02 Cumulative 315.3 hours Start 2022.07.05 @ 00:53:57 End 2022.07.05 @ 03:22:46 Sessions 1 Manual Loads 0 Difficulty Rogue Special Mode None Game No. 111 Rogue 96 Adventurer 15 Explorer 0 Win Type - Total 15 Types 4/0/6/1/2/0/2/0/0 Lore% 91 Gallery% 90 Achievement% 80 Wizard Run 0 Options --------- ASCII 0 Keyboard 0 Movement Numpad Keybinds 0 Fullscreen 1 Font 18/SmallcapsGlow Map View 76x50 Tactical HUD 1 Map Filters NONE Filters NONE Steam 1 RUN: f10ef4cf-c9ae-4f3b-a428-917e7a959b36